Cogmind - Beta 15 @@@ ROGUE MODE // 2025.05.07 @ 20:55:18 Player: szymekc Result: Destroyed by H-66 Slayer with Gauss Rifle Performance ------------- Evolutions (4) 2000 Regions Visited (7) 1400 Robots Destroyed (116) 580 Value Destroyed (2975) 2975 Prototype IDs (19) 380 Alien Tech Used (0) 0 Bonus (1089) 1089 TOTAL SCORE: 8424 Bonus ------- High Alert Combat Kills 11 Follower Combat Kills 301 Registered with UFD 300 Met Optimus in HQ 500 Friendly Fire -23 Cogmind --------- Core Integrity 0/850 Matter 243/300 Energy 45/100 System Corruption 7% Temperature Cool (0) Movement Core (50) Location -6/Factory Parts ------- > --- POWER (2) -------- (None) > --- PROPULSION (4) --- (None) > --- UTILITY (7) ------ Advanced Signal Interpreter > --- WEAPON (2) ------- (None) > --- INVENTORY (5) ---- Remote Shield Scrapoid Pod Improved EM Shotgun Peak State ------------ > --- POWER ------------ Cooled Ion Engine Cold Fusion Reactor > --- PROPULSION ------- Light Treads Light Treads Light Treads Light Treads > --- UTILITY ---------- Huge Storage Unit Experimental Sensor Array Advanced Signal Interpreter Transmission Jammer Reactive Plating Force Field Improved Hacking Suite > --- WEAPON ----------- Advanced Beam Cannon Makeshift Axe > --- INVENTORY -------- Light Nuclear Core Light Treads Improved Treads Improved Heat Sink Medium Armor Plating Medium Armor Plating Layered Light Armor Plating Focal Shield Remote Shield Improved Hacking Suite Scrapoid Pod Improved EM Shotgun Improved EM Shotgun Advanced Beam Cannon Magnetic Acceleration Cannon Magnetic Acceleration Cannon Proton Missile Launcher Rocket Launcher Missile Launcher CPS Tube CPS Tube Vortex Trap Vortex Trap Vortex Trap [Rating: 60] Favorites ----------- Power Cooled Ion Engine Engine Cooled Ion Engine Reactor Cold Fusion Reactor Propulsion Light Treads Treads Light Treads Flight Unit Improved Flight Unit Utility Improved Heat Sink Device Improved Heat Sink Storage Huge Storage Unit Processor Advanced Signal Interpreter Hackware Improved Hacking Suite Protection Reactive Plating Weapon Advanced Beam Cannon Energy Gun Improved EM Shotgun Energy Cannon Advanced Beam Cannon Ballistic Gun Light Assault Rifle Ballistic Cannon Improved Light Cannon Launcher Rocket Launcher Slashing Weapon Makeshift Axe Build | -11 -10 -10 -9 -9 -9 -9 -6 ------- Run | Yrd Mat Min Mat Sto Rec Scr Fac Slots Evolved 8 | . . . 2 . . . 6 Power 1 | . . . . . . . 1 Propulsion 2 | . . . 1 . . . 1 Utility 5 | . . . 1 . . . 4 Weapon . | . . . . . . . . Parts Attached 76 | 7 12 1 20 20 1 1 14 Power 10 | 1 1 1 2 4 . 1 . Engine 9 | 1 1 1 2 3 . 1 . Core . | . . . . . . . . Reactor 1 | . . . . 1 . . . Propulsion 24 | 2 2 . 8 8 1 . 3 Treads 23 | 2 2 . 7 8 1 . 3 Leg . | . . . . . . . . Wheel . | . . . . . . . . Hover . | . . . . . . . . Flight 1 | . . . 1 . . . . Utility 20 | 2 2 . 4 3 . . 9 Device 10 | 2 . . 3 2 . . 3 Storage 3 | . 1 . 1 1 . . . Processor 1 | . . . . . . . 1 Hackware 2 | . . . . . . . 2 Protection 4 | . 1 . . . . . 3 Artifact . | . . . . . . . . Weapon 22 | 2 7 . 6 5 . . 2 Energy Gun 1 | . . . . 1 . . . Energy Cannon 5 | . . . 2 3 . . . Ballistic Gun 5 | 2 2 . 1 . . . . Ballistic Cannon 6 | . 5 . 1 . . . . Launcher 4 | . . . 2 . . . 2 Special Weapon . | . . . . . . . . Impact Weapon . | . . . . . . . . Slashing Weapon 1 | . . . . 1 . . . Piercing Weapon . | . . . . . . . . Special Melee Weapon . | . . . . . . . . Unidentified Prototypes 7 | . . . 2 5 . . . Parts Lost 19 | . 1 . 1 . . . 17 Power 3 | . 1 . . . . . 2 Propulsion 6 | . . . . . . . 6 Utility 6 | . . . 1 . . . 5 Weapon 4 | . . . . . . . 4 Highest Loss Streak 17 | . 1 . 1 . . . 17 To Critical Strikes 1 | . . . . . . . 1 Average Backups 19 | 1 6 14 18 20 22 24 18 Power 1 | . . . . 1 2 1 . Propulsion 6 | . . 3 7 8 10 8 1 Utility 5 | . 2 4 4 4 5 8 5 Weapon 5 | . 3 6 6 5 5 4 7 Tool/Special . | . . . . . . . . Unused Backups 34 | . 8 4 2 6 . 5 9 Power 3 | . 1 . . 1 . . 1 Propulsion 7 | . . . 2 1 . 4 . Utility 7 | . 2 1 . 1 . 1 2 Weapon 14 | . 5 3 . 3 . . 3 Tool/Special 3 | . . . . . . . 3 Average Slot Usage (%) 98 | . 94 100 95 100 100 100 98 Engine 10 | . 8 14 11 11 11 11 5 Treads 31 | . 27 28 33 33 33 33 25 Device 20 | . 14 14 18 22 22 22 23 Storage 9 | . 4 14 11 11 11 11 6 Protection 1 | . 8 . . . . . 5 Energy Cannon 14 | . . . 5 20 22 22 7 Ballistic Gun 1 | . 8 . 1 . . . . Ballistic Cannon 5 | . 19 28 14 . . . . Peak Build Rating 60 | 9 10 13 25 26 26 27 60 Average Rating 24 | 5 8 12 17 23 25 26 55 On Entrance 16 | . 9 10 13 18 26 26 27 Naked Turns . | . . . . . . . . Heaviest Build 132 | 9 30 36 60 98 98 98 132 Greatest Support 83 | 40 40 40 60 60 60 60 83 Greatest Overweight (x) 4 | . . . . 1 1 1 4 Average Overweight (x) . | . . . . . 1 1 . Largest Inventory Capacity 25 | 5 15 15 20 25 25 25 25 Average Capacity 21 | 5 8 15 19 21 25 25 24 Most Carried 25 | 2 11 15 20 22 24 25 25 Average Carried 19 | 1 6 14 18 20 22 24 22 Final Capacity 25 | 5 15 15 20 25 25 25 5 Final Carried 25 | 2 10 15 20 22 24 25 4 Class Distribution -------------------- 54% | Commander-Mutant 22% | Scavenger-Mutant 22% | Mutant Dominant Class ---------------- Mutant | -10/Materials Mutant | -10/Mines Scavenger-Mutant | -9/Materials Commander-Mutant | -9/Storage Commander-Mutant | -9/Recycling Commander-Mutant | -9/Scraptown Scavenger-Mutant | -6/Factory Resources | -11 -10 -10 -9 -9 -9 -9 -6 ----------- Run | Yrd Mat Min Mat Sto Rec Scr Fac Matter Collected 1771 | 296 300 69 710 241 20 10 125 Remotely . | . . . . . . . . Salvage Created 4100 | 216 441 30 767 1451 658 . 537 Parts 254 | 21 40 . 57 79 34 . 23 Haulers Intercepted 12 | . 2 . 4 5 . . 1 Recyclers Shooed 6 | . . . 1 2 3 . . Parts Field Recycled . | . . . . . . . . Retrieved Matter . | . . . . . . . . Parts Self-Destructed . | . . . . . . . . Prevented . | . . . . . . . . Kills | -11 -10 -10 -9 -9 -9 -9 -6 ------- Run | Yrd Mat Min Mat Sto Rec Scr Fac Combat Hostiles Destroyed 74 | . 11 1 22 20 9 . 11 Melee 1 | . . . . 1 . . . Guns 6 | . 6 . . . . . . Cannons 58 | . 5 1 17 19 9 . 7 AOE 7 | . . . 5 . . . 2 Classes Destroyed 16 | 3 5 1 1 . 4 . 2 Worker 5 | 2 1 . 2 . . . . Builder 2 | . . . . . . . 2 Tunneler 4 | 4 . . . . . . . Hauler 12 | . 2 . 4 5 . . 1 Recycler 8 | 1 1 . 1 2 3 . . Operator 1 | . 1 . . . . . . Watcher 8 | . 3 . 3 2 . . . Swarmer 17 | . 6 . 7 . . . 4 Grunt 29 | . 5 . 8 10 2 . 4 Brawler 1 | . . . 1 . . . . Duelist 1 | . . . . . 1 . . Protector 3 | . . . . . 2 . 1 Sentry 20 | . . 1 6 11 2 . . Demolisher 1 | . . . . . 1 . . Specialist 1 | . . . . . . . 1 Programmer 3 | . . . . . 2 . 1 Best Kill Streak 7 | 4 3 1 5 3 5 . 7 Combat Bots Only 7 | . 3 1 4 3 5 . 7 Max Kills in Single Turn 3 | 1 1 1 3 1 1 . 3 Gunslinging . | . . . . . . . . Exploded 3 | . . . 3 . . . 1 Melee 1 | . . . . 1 . . . Uniques/NPCs Destroyed . | . . . . . . . . Combat | -11 -10 -10 -9 -9 -9 -9 -6 -------- Run | Yrd Mat Min Mat Sto Rec Scr Fac Hostile Shots Fired 380 | . 51 2 85 38 16 . 188 Missed 119 | . 13 . 29 10 5 . 62 Hits 261 | . 38 2 56 28 11 . 126 Projectile 261 | . 38 2 56 28 11 . 126 AOE 1 | . . . . . . . 1 Critical Strikes 8 | . 1 . 1 . . . 6 Damage Taken 4542 | . 346 33 666 398 180 . 2919 Core 1061 | . 56 . 77 52 14 . 862 Absorbed by Shields 8 | . . . . . . . 8 Ignored by Resistances 61 | . . . . . . . 61 Regen/Repaired (Parts) 66 | . 66 . . . . . . Core Remaining (%) 80 | 100 . 77 . . . 64 . Volleys Fired 216 | 15 38 2 65 55 18 . 23 Largest 2 | 2 2 2 2 2 2 . 2 Hottest 136 | 40 66 66 136 136 136 . 136 Shots Fired 428 | 30 74 4 128 110 36 . 46 Gun 72 | 30 32 . 10 . . . . Cannon 350 | . 42 4 116 110 36 . 42 Launcher 6 | . . . 2 . . . 4 Special . | . . . . . . . . Kinetic 224 | 30 74 4 116 . . . . Thermal 198 | . . . 10 110 36 . 42 Explosive 5 | . . . 2 . . . 3 Electromagnetic 1 | . . . . . . . 1 Robot Hit Streak 20 | 11 13 7 10 20 8 . 10 Robot Miss Streak 7 | 1 5 . 7 3 3 . 2 Penetration Max . | . . . . . . . . Secondary Targets . | . . . . . . . . Shots Hit Robots 252 | 21 43 4 72 69 18 . 25 Core Hits 145 | 14 25 2 35 31 12 . 26 Critical Kills 4 | . . . . 2 . . 2 Critical Parts Destroyed . | . . . . . . . . Critical Strikes 10 | . . 1 5 2 . . 2 Meltdown 4 | . . . . 2 . . 2 Blast 6 | . . 1 5 . . . . Melee Attacks 10 | . . . . 5 . . 5 Impact . | . . . . . . . . Slashing 10 | . . . . 5 . . 5 Piercing . | . . . . . . . . Sneak Attacks . | . . . . . . . . Combat Hostiles . | . . . . . . . . Follow-up Attacks . | . . . . . . . . Damage Inflicted 6972 | 181 611 103 1845 1557 563 . 2112 Guns 424 | 179 154 . 91 . . . . Cannons 4508 | . 444 91 1411 1468 483 . 611 Explosions 1791 | . . . 290 . . . 1501 Melee 35 | . . . . 35 . . . Ramming 214 | 2 13 12 53 54 80 . . Kinetic 2267 | 179 598 91 1399 . . . . Thermal 2665 | . . . 103 1468 483 . 611 Explosive 1294 | . . . 290 . . . 1004 Electromagnetic 51 | . . . . . . . 51 Impact . | . . . . . . . . Slashing 35 | . . . . 35 . . . Piercing . | . . . . . . . . Entropic 446 | . . . . . . . 446 Highest Corruption 7 | . . . . . . . 7 Average Corruption 1 | . . . . . . . 1 Corruption Purged . | . . . . . . . . Corruption Blocked . | . . . . . . . . Effects 10 | . . . . . . . 10 Message Errors 2 | . . . . . . . 2 Matter Fused 1 | . . . . . . . 1 Heat Flow Errors 2 | . . . . . . . 2 Data Loss (minor) 1 | . . . . . . . 1 Misfires 4 | . . . . . . . 4 Overload Shots . | . . . . . . . . Overflow Damage 169 | . 12 . 32 44 . . 81 Projectiles 128 | . 12 . 26 44 . . 46 Explosions 35 | . . . . . . . 35 Melee 6 | . . . 6 . . . . Knockbacks 10 | . 4 . 4 . 2 . . Impact 3 | . . . 1 . 2 . . Kinetic 7 | . 4 . 3 . . . . Secondary . | . . . . . . . . Self-Inflicted Damage 148 | . . . 2 . . . 146 Shots 2 | . . . 1 . . . 1 Rammed 26 | 1 4 2 4 9 6 . . Targets Rammed 31 | 1 4 2 7 9 8 . . Kicked . | . . . . . . . . Crushed 5 | . . . 3 . 2 . . Highest Temperature 251 | . 126 . 90 36 1 . 251 Average Temperature 36 | . 30 . 37 13 1 . 59 Received Heat Transfer 699 | . 84 . 267 150 21 . 177 Siege Activations . | . . . . . . . . Martial Activations . | . . . . . . . . Shielding Activations . | . . . . . . . . Robots Disrupted . | . . . . . . . . Combat Hostiles . | . . . . . . . . Robots Corrupted 1 | . . . 1 . . . . Combat Hostiles . | . . . . . . . . Parts Fried 2 | . . . 2 . . . . Impact Corruptions 1 | . . . 1 . . . . Robots Melted 4 | . . . . 2 . . 2 Combat Hostiles 2 | . . . . . . . 2 Parts Melted 10 | . . . 1 8 . . 1 Heat Transferred 4571 | . . . 185 2590 797 . 999 Parts Sabotaged . | . . . . . . . . Parts Stolen . | . . . . . . . . Parts Stripped . | . . . . . . . . Power Chain Reactions . | . . . . . . . . Alert | -11 -10 -10 -9 -9 -9 -9 -6 ------- Run | Yrd Mat Min Mat Sto Rec Scr Fac Maximum Alert Level 2 | . . . 1 2 . . . Low Security (%) 83 | 100 100 100 92 23 100 . 100 Level 1 16 | . . . 7 74 . . . Level 2 . | . . . . 1 . . . Level 3 . | . . . . . . . . Level 4 . | . . . . . . . . Level 5 . | . . . . . . . . High Security . | . . . . . . . . Max Security . | . . . . . . . . Peak Influence 411 | 10 131 20 278 411 151 . 160 Initial 99 | . 3 . . 9 99 . . Average 89 | 1 55 . 94 244 64 . 24 Influence Increases 3095 | 35 419 20 731 1026 526 . 338 Destroy 0b10 Robot/C 1600 | . 220 20 440 480 200 . 240 Destroy 0b10 Robot/NC 215 | 35 40 . 50 45 25 . 20 Destroy Leader 430 | . 40 . 144 204 . . 42 Allied During Kill 237 | . . . . 202 22 . 13 Successful Hack 118 | . 41 . 8 14 55 . . Select Force Hacks 240 | . 30 . . . 210 . . Disable Machine 105 | . 15 . 15 75 . . . Destroy Structure 75 | . 3 . 29 6 14 . 23 Lose Combat Pursuer 75 | . 30 . 45 . . . . Influence Decreases 3074 | 30 424 20 709 794 745 35 317 Entered New Map 205 | . 2 . . 13 155 35 . Time Decay 2186 | 30 412 20 427 551 550 . 196 Lost Part 45 | . 10 . 10 . . . 25 Lost Ally 216 | . . . . 80 40 . 96 Purge Threat 422 | . . . 272 150 . . . Squads Dispatched 18 | . 2 1 5 5 . . 5 Investigation 6 | . 1 1 2 1 . . 1 Extermination 2 | . . . . . . . 2 Reinforcement 8 | . 1 . 3 2 . . 2 Assault . | . . . . . . . . Garrison 2 | . . . . 2 . . . Intercept . | . . . . . . . . Searches Triggered . | . . . . . . . . Construction Impeded 2 | . . . . . . . 2 Haulers Reinforced . | . . . . . . . . Active Scanning Responses . | . . . . . . . . Cargo Convoy Interrupts 1 | . . . . . . . 1 Stealth | -11 -10 -10 -9 -9 -9 -9 -6 --------- Run | Yrd Mat Min Mat Sto Rec Scr Fac Distress Signals 5 | . 1 . 2 2 . . . Communications Jammed 5 | . . . . . . . 5 Distress Signals 5 | . . . . . . . 5 Times Spotted 131 | . 24 2 40 27 9 . 29 Peak Tracking Total 10 | . 5 2 4 3 5 . 10 Tactical Retreats 4 | . 2 . 2 . . . . Traps | -11 -10 -10 -9 -9 -9 -9 -6 ------- Run | Yrd Mat Min Mat Sto Rec Scr Fac Traps Triggered 6 | . 2 . 2 . . . 2 Indirectly . | . . . . . . . . Trap Hack Attempts . | . . . . . . . . Triggered . | . . . . . . . . Disarmed 4 | . 4 . . . . . . Reprogrammed . | . . . . . . . . Reused . | . . . . . . . . Traps Extracted . | . . . . . . . . Installed 2 | . . . . . . . 2 Triggered . | . . . . . . . . Most Traps Carried 3 | . . . . . . 3 3 Machines | -11 -10 -10 -9 -9 -9 -9 -6 ---------- Run | Yrd Mat Min Mat Sto Rec Scr Fac Machines Disabled 7 | . 1 . 1 5 . . . Max in Single Turn 1 | . 1 . 1 1 . . . Garrison Access 1 | . . . . 1 . . . Machines Repaired . | . . . . . . . . Machines Dismantled . | . . . . . . . . Machines Sabotaged . | . . . . . . . . Overloaded Fab Kills . | . . . . . . . . Hacking | -11 -10 -10 -9 -9 -9 -9 -6 --------- Run | Yrd Mat Min Mat Sto Rec Scr Fac Machines Accessed 50 | . 8 2 7 13 13 4 3 Terminals 30 | . 6 1 5 11 6 . 1 Fabricators . | . . . . . . . . Repair Stations 1 | . 1 . . . . . . Recycling Units 11 | . 1 . 1 1 7 . 1 Scanalyzers 1 | . . . 1 . . . . Garrison Access 2 | . . . . 1 . . 1 Total Hacks 135 | . 30 3 20 26 38 12 6 Successful 85 | . 22 1 12 14 21 12 3 Failed 50 | . 8 2 8 12 17 . 3 Catastrophic 7 | . . 1 3 . 2 . 1 Database Lockouts . | . . . . . . . . Manual 76 | . 20 2 12 12 27 . 3 Terminals 94 | . 26 2 17 24 22 . 3 Fabricators . | . . . . . . . . Repair Stations 3 | . 3 . . . . . . Recycling Units 21 | . 1 . 1 1 16 . 2 Scanalyzers 2 | . . . 2 . . . . Garrison Access 2 | . . . . 1 . . 1 Terminal Hacks 36 | . 10 1 3 7 3 12 . Record 6 | . . . . . . 6 . Robot Analysis 8 | . 2 . . . 1 5 . Prototype ID Bank 4 | . 1 . 1 1 1 . . Open Door 6 | . . 1 . 5 . . . Emergency Access Points 1 | . 1 . . . . . . Terminal Index 1 | . 1 . . . . . . Unreport Threat 3 | . . . 2 1 . . . Locate Traps 2 | . 2 . . . . . . Disarm Traps 1 | . 1 . . . . . . Hauler Manifests 1 | . 1 . . . . . . Registered Components 1 | . 1 . . . . . . Zone Layout 1 | . . . . . 1 . . Proto ID Catalog 1 | . . . . . . 1 . Fabricator Hacks . | . . . . . . . . Repair Station Hacks 3 | . 3 . . . . . . Scan Component 1 | . 1 . . . . . . Repair 1 | . 1 . . . . . . Refit 1 | . 1 . . . . . . Recycling Unit Hacks 6 | . . . . 1 4 . 1 Retrieve Components 6 | . . . . 1 4 . 1 Scanalyzer 2 | . . . 2 . . . . Insert Component 1 | . . . 1 . . . . Analyze 1 | . . . 1 . . . . Garrison Access Hacks 1 | . . . . 1 . . . Seal Access 1 | . . . . 1 . . . Unauthorized Hacks 37 | . 9 . 7 5 14 . 2 Terminals 28 | . 8 . 7 5 7 . 1 Assimilate 1 | . 1 . . . . . . Botnet 7 | . 2 . 2 . 2 . 1 Skim 20 | . 5 . 5 5 5 . . Fabricators . | . . . . . . . . Repair Stations 1 | . . . . . . . 1 Recycling Units 8 | . 1 . . . 7 . . Tunnel 8 | . 1 . . . 7 . . Fedlink 1 | . . . . . . . 1 Scanalyzers . | . . . . . . . . Garrison Access . | . . . . . . . . Data Cores Recovered 1 | . 1 . . . . . . Used . | . . . . . . . . Hacking Detections 31 | . 5 1 6 8 9 . 2 Full Trace Events 1 | . . . . 1 . . . Feedback Events . | . . . . . . . . Feedback Blocked . | . . . . . . . . Robot Schematics Acquired . | . . . . . . . . Robots Built . | . . . . . . . . Authchips . | . . . . . . . . Time . | . . . . . . . . Total Robot Build Rating . | . . . . . . . . Part Schematics Acquired 1 | . . . 1 . . . . Parts Built . | . . . . . . . . Authchips . | . . . . . . . . Time . | . . . . . . . . Total Part Build Rating . | . . . . . . . . Parts Repaired 1 | . 1 . . . . . . Time 26 | . 26 . . . . . . Parts Recycled . | . . . . . . . . Recycled Matter . | . . . . . . . . Retrieved Matter . | . . . . . . . . Retrieved Components 17 | . . . . 2 15 . . Parts Scanalyzed 1 | . . . 1 . . . . Part Schematics Acquired 1 | . . . 1 . . . . Parts Damaged . | . . . . . . . . Bothacking | -11 -10 -10 -9 -9 -9 -9 -6 ------------ Run | Yrd Mat Min Mat Sto Rec Scr Fac Used RIF Installer . | . . . . . . . . Robots Hacked . | . . . . . . . . Non-combat . | . . . . . . . . Combat . | . . . . . . . . Robot Hacks Applied . | . . . . . . . . Relay Couplers Released . | . . . . . . . . Fabnet Peak Effective % . | . . . . . . . . Robots Rewired 11 | . . . . . 11 . . Allies Hacked . | . . . . . . . . Hacks Repelled . | . . . . . . . . Allies | -11 -10 -10 -9 -9 -9 -9 -6 -------- Run | Yrd Mat Min Mat Sto Rec Scr Fac Total Allies 22 | . . 1 . 10 11 . . Largest Group 11 | . . 1 . 10 11 10 9 Highest-Rated Group 141 | . . 31 . 88 141 141 133 Highest-Rated Ally 34 | . . 31 . 16 34 34 34 Total Orders . | . . . . . . . . Ally Attacks 77 | . . . . 38 27 . 12 Total Damage 1336 | . . . . 301 285 . 750 Kills 11 | . . . . 4 4 . 3 Allies Corrupted . | . . . . . . . . Allies Melted . | . . . . . . . . Intel | -11 -10 -10 -9 -9 -9 -9 -6 ------- Run | Yrd Mat Min Mat Sto Rec Scr Fac Active Infowar (turns) 4264 | 92 1371 931 653 . . . 1217 Sensors 1148 | . . . 1 . . . 1147 Terrain 86 | 48 38 . . . . . . Seismic 3046 | 92 1371 931 652 . . . . Jamming 1206 | . . . . . . . 1206 Robot Analysis Total 8 | . 2 . . . 1 5 . Derelict Logs Recovered 3 | . . 3 . . . . . Drone Launches . | . . . . . . . . Drone Recoveries . | . . . . . . . . Exploration | -11 -10 -10 -9 -9 -9 -9 -6 ------------- Run | Yrd Mat Min Mat Sto Rec Scr Fac Turns Passed 12203 | 170 1371 931 1298 1662 1614 3931 1226 Spaces Moved 5413 | 70 735 569 634 747 563 1630 465 Core 8 | 3 . . . . . . 5 Treads 5405 | 67 735 569 634 747 563 1630 460 Legs . | . . . . . . . . Wheels . | . . . . . . . . Hover . | . . . . . . . . Flight . | . . . . . . . . Fastest Speed 50 | 50 160 160 160 160 240 240 50 Average Speed 201 | 155 160 160 160 179 240 240 238 Slowest Speed 480 | 160 160 160 160 240 240 240 480 Overloaded Moves . | . . . . . . . . Propulsion Burnouts . | . . . . . . . . Robots Hopped . | . . . . . . . . Potential Cave-ins . | . . . . . . . . Cave-ins Triggered . | . . . . . . . . Exploration Rate (%) 68 | 5 80 98 61 96 98 93 13 Regions Visited 7 Branch Regions 4 Pre-discovered Areas 15 | . 2 1 3 . 9 . . Known Exits Taken 3 | . . 1 1 1 . . . Unknown Exits Taken 4 | 1 1 . . . 1 1 . Scrap Searched 10 | . . 1 . . . 9 . Spaces Dug 9 | . . . . 4 . . 5 Terrain Destroyed 42 | . . . 23 4 1 . 14 Melee 9 | . . . . 4 . . 5 Projectile 3 | . . . 2 . 1 . . AOE 30 | . . . 21 . . . 9 Terrain Rammed . | . . . . . . . . Walls Destroyed . | . . . . . . . . Machines Disabled . | . . . . . . . . Actions | -11 -10 -10 -9 -9 -9 -9 -6 --------- Run | Yrd Mat Min Mat Sto Rec Scr Fac Total 6272 | 103 866 588 789 959 779 1655 533 Wait 227 | 9 36 1 36 87 55 . 3 Move 5406 | 69 734 568 633 746 562 1629 465 Hop . | . . . . . . . . Pick Up 67 | 2 17 9 8 9 2 12 8 Fast Attach 19 | 7 8 . 4 . . . . Attach 15 | . . . 4 . . . 11 Detach 4 | . 1 . 2 . . . 1 Swap 65 | . 8 1 16 26 2 2 10 Drop 79 | . 20 5 14 22 1 12 5 Fire 216 | 15 38 2 65 55 18 . 23 Melee 10 | . . . . 5 . . 5 Ram . | . . . . . . . . Kick . | . . . . . . . . Crush 31 | 1 4 2 7 9 8 . . Escape Stasis . | . . . . . . . . Rewire 131 | . . . . . 131 . . Trap 2 | . . . . . . . 2 Miscellaneous . | . . . . . . . . Route ------- -11/Scrapyard -10/Materials (discovered 5 exits: *Mat x3 / *Min / Sub) -10/Mines (discovered 3 exits: *Mat x2 / Sub) -9/Materials (discovered 4 exits: *Mat x2 / Min / *Sto) -9/Storage (discovered 2 exits: *Mat / *Rec) -9/Recycling (discovered 2 exits: *Fac / *Scr) -9/Scraptown (discovered 2 exits: *Fac x2) -6/Factory (discovered 2 exits: *Fac / *Low) History --------- Turn | Location | Event 12 | -11/Scrapyard | Discovered new exit (range 16) 171 | -11/Scrapyard | Entered Materials 314 | -10/Materials | Build established: Mutant 350 | -10/Materials | Discovered new exit (range 8) 448 | -10/Materials | Discovered new exit (range 16) 857 | -10/Materials | Discovered new exit (range 9) 1311 | -10/Materials | Learned location of 2 exits from Mines 1363 | -10/Materials | Identified exit to Subcaves 1363 | -10/Materials | Identified exit to Materials 1405 | -10/Materials | Learned location of 2 exits from Materials 1435 | -10/Materials | Learned Recycling recycling unit intel 1475 | -10/Materials | Learned Storage interactive machine intel 1485 | -10/Materials | Repaired Lgt. Treads 1542 | -10/Materials | Entered Mines 1549 | -10/Mines | Learned location of Zion (-7) 1549 | -10/Mines | Joined a pair of Derelicts in attacking an 0b10 outpost 1703 | -10/Mines | Received a Rocket Launcher from a helpful Derelict 1718 | -10/Mines | Learned 4 Materials zone layouts 1721 | -10/Mines | Received a Mining Laser from a helpful Derelict 1886 | -10/Mines | Learned Materials terminal intel 1923 | -10/Mines | Found a damaged Exp. Sensor Array with a note attached 1927 | -10/Mines | Found Prototype Device 2062 | -10/Mines | A weapon hastily lodged in a ceiling crevice suddenly fell to the ground 2166 | -10/Mines | Discovered exit to Materials (range 10) 2234 | -10/Mines | Met a Derelict shopkeep closing up shop 2473 | -10/Mines | Entered Materials 2473 | -9/Materials | Evolved 2 slots: Propulsion x1, Utility x1 2474 | -9/Materials | Identified exit to Storage 2475 | -9/Materials | Identified exit to Mines 2475 | -9/Materials | Identified exit to Materials 2477 | -9/Materials | Loaded intel: 12 terminal locations 2801 | -9/Materials | Build established: Scavenger-Mutant 3122 | -9/Materials | Discovered exit to Materials (range 3) 3437 | -9/Materials | Identified Exp. Sensor Array 3676 | -9/Materials | Learned 4 Recycling zone layouts 3743 | -9/Materials | Learned Storage stockpile data 3761 | -9/Materials | Learned Storage garrison access intel 3771 | -9/Materials | Entered Storage 3774 | -9/Storage | Loaded intel: 21 interactive machine locations 3775 | -9/Storage | Loaded intel: 1 garrison access location 4046 | -9/Storage | Assisted by bots powering up and referring to "LRC-V3" 4385 | -9/Storage | Build established: Commander-Mutant 4526 | -9/Storage | Garrison activated, responded to threat 4615 | -9/Storage | Lost 3 allies 5164 | -9/Storage | Learned location of 2 exits from Materials 5218 | -9/Storage | Identified exit to Recycling 5263 | -9/Storage | Loaded intel: 8 trap records 5298 | -9/Storage | Learned Materials stockpile data 5322 | -9/Storage | Learned Materials emergency access door positions 5337 | -9/Storage | Learned 4 Recycling zone layouts 5357 | -9/Storage | Used back door to open Recycling access 5364 | -9/Storage | Learned Storage garrison access intel 5403 | -9/Storage | Learned Materials trap positions 5433 | -9/Storage | Entered Recycling 5433 | -9/Recycling | Accompanied by 4 allies 5434 | -9/Recycling | Identified exit to Factory 5435 | -9/Recycling | Loaded intel: 7 recycling unit locations 5473 | -9/Recycling | Build established: Scavenger-Mutant 5794 | -9/Recycling | Build established: Commander-Mutant 5880 | -9/Recycling | Lost 3 allies 6176 | -9/Recycling | Scanned before Scraplab entrance 6561 | -9/Recycling | P-60 Hacker assimilated allied Mercenary 2g 6746 | -9/Recycling | Learned 4 Materials zone layouts 6795 | -9/Recycling | Learned Materials stockpile data 6861 | -9/Recycling | Learned location of 2 exits from Materials 6899 | -9/Recycling | Learned Materials trap positions 6947 | -9/Recycling | Learned Storage trap positions 6968 | -9/Recycling | Entered Scraplab 6987 | -9/Recycling | Discovered new exit (range 2) 7003 | -9/Recycling | Learned Materials repair station intel 7047 | -9/Recycling | Entered Scraptown 7047 | -9/Scraptown | Accompanied by 10 allies 7881 | -9/Scraptown | Discovered new exit (range 9) 8109 | -9/Scraptown | Visited The Evicted 8167 | -9/Scraptown | Visited Cyclists 8191 | -9/Scraptown | Visited Artisan Demo Area 8337 | -9/Scraptown | Visited Comm Corps 8416 | -9/Scraptown | Visited Scrapoid Research Area 8460 | -9/Scraptown | Visited UFD Registry 8460 | -9/Scraptown | Registered with UFD as "Plasmashaft" 8500 | -9/Scraptown | Visited Fellowship of the Rings 8565 | -9/Scraptown | Visited Bundlers 9143 | -9/Scraptown | Entered Cyclist Reading Room 9287 | -9/Scraptown | Visited LU-1G1's Boring Crew 9379 | -9/Scraptown | Visited DA-N13 Charitable Foundation 9388 | -9/Scraptown | Found DCF Scrap (28 items) 9458 | -9/Scraptown | Visited Analyses Database 9751 | -9/Scraptown | Visited Junk Repository 9839 | -9/Scraptown | Visited Scrapoid Pod Storage 9880 | -9/Scraptown | Visited Derelict Rescue Squad 9901 | -9/Scraptown | Visited Abandonware Association 9928 | -9/Scraptown | Learned abandonware demo "KABOOM.EXE" 9985 | -9/Scraptown | Visited Scrap Suit Storage 10031 | -9/Scraptown | Visited Science Guys 10115 | -9/Scraptown | Visited Chapter 10 10597 | -9/Scraptown | Discovered new exit (range 5) 10718 | -9/Scraptown | Found Scrapoid Pod 10844 | -9/Scraptown | Met Optimus 10844 | -9/Scraptown | Accepted into 0bPrime 10978 | -9/Scraptown | Entered Factory 10978 | -6/Factory | Accompanied by 10 allies 10978 | -6/Factory | Evolved 6 slots: Power x1, Propulsion x1, Utility x4 11110 | -6/Factory | Lost 6 allies 11127 | -6/Factory | Destroyed 7 combat bots 11208 | -6/Factory | Loaded intel: 8 recycling unit locations 11368 | -6/Factory | Build established: Scavenger-Mutant 11557 | -6/Factory | Discovered new exit (range 16) 11591 | -6/Factory | Identified exit to Factory 11907 | -6/Factory | Discovered new exit (range 8) 11924 | -6/Factory | Identified exit to Lower Caves 12183 | -6/Factory | Cargo convoy interrupted 12200 | -6/Factory | Core integrity fell below 50% 12202 | -6/Factory | Core integrity fell below 20% 12204 | -6/Factory | Destroyed by H-66 Slayer with Gauss Rifle Last Messages --------------- 12200_ Installed Vortex Trap. 12201_ Triggered Vortex Trap. 12201_ A wave of accelerated entropy washes over the area. 12201_ A-27 Freighter destroyed. 12201_ Destroyed Wheel. 12201_ U-05 Engineer destroyed. 12201_ I-36 Angel destroyed. 12201_ Dropped Huge Storage Unit. 12201_ U-05 Engineer lays Concrete. 12203_ Penetrated by Slug. 12203_ Slug penetrates X-67 Chaingunner. 12203_ U-05 Engineer builds a Wall. 12203_ Penetrated by Slug. 12203_ Slug penetrates H-66 Slayer. 12204_ Dropped Vortex Trap. 12204_ P-60 Hacker resets H-66 Slayer, system corruption cleaned. 12204_ Installed Vortex Trap. 12204_ Penetrated by Slug. 12204_ X-67 Chaingunner destroyed. 12204_ Penetrated by Slug. Map ----- +----------------------------------------------------+ | | | | | | | | | | | ?????????????????????????????????????????????????? | | ############???####### ??????????????????????????? | | # """T""" #???# # "?????????????????????????? | | # #???# # ""????????????????????????? | | # #???# # """"""????????????????????? | | # """ """ ##### # ?????????????????????? | | # """ """ # " # ] ?????????????????????? | | " """ """ # # ; ??????????????????????? | | # + + ; ???????????????????????? | | # ! ! # # ;##/#?????+##???????????????? | | +######+#### ###; #u###?? #???????????????? | | ; #m;;### #???????????????? | | ;; #???????????????? | | ^ !!!| #???????????????? | | & =!=|[! #???????????????? | | """"""""" ! *=!!]] #???????????????? | | = %&=[!] #???????????????? | | """"""""" =!!!*/ #???????????????? | | ![= ! #???????????????? | | """"""""" / !%= #???????????????? | | !! %@h #???????????????? | | * hmh ph p #???????????????? | | % / ??????????? | | # ?????????? | | R % #??####?????????? | | ######### R ??????????????? | | """ """ ??""""""" # ????????????? | | """"" """"" ???"""Y""" # ???????????? | | """"" """"" #??????? + """" !???????????? | | #??????"""" #? """""" ???????????? | | ! #??????? #? ""F????????????????? | | #??????? #??"??????????????????? | | # ######## ????????#####?? ??????????????????? | | # #??????????????????????????????????????????? | | # #??????????????????????????????????????????? | | + #??????????????????????????????????????????? | | # #??????????????????????????????????????????? | | # #??????????????????????????????????????????? | | + #??????????????????????????????????????????? | | ##### #??????????????????????????????????????????? | | #???# #??????????????????????????????????????????? | | #???# #??????????????????????????????????????????? | | #???# #??????????????????????????????????????????? | | ##### #??????????????????????????????????????????? | | #??????????????????????????????????????????? | +----------------------------------------------------+ Best States ------------- Heat Dissipation 65 Energy Generation 26 Energy Capacity 380 Matter Stores 300 Matter Capacity 300 Sight Range 16 Robot Scan Range 20 Terrain Scan Range 16 Terrain Scan Density 10 Jamming Range 12 Armor Coverage 375 Resistance: KI 20 Evasion (%) 40 Recoil Reduction 4 Offensive Hacking 24 Item Schematics ----------------- Exp. Sensor Array | -9/Materials | Scanalyzed Robot Schematics ------------------ None Fabricated ------------ Nothing Repaired ---------- Lgt. Treads | 52% | -10/Materials Alien Tech Used ----------------- None Achievements -------------- None Challenges ------------ None Game ------ Seed AerolevDirectedBiocell Manual? 0 Play Time 00:54:07 Cumulative 665.0 hours Start 2025.05.07 @ 19:57:33 End 2025.05.07 @ 20:55:18 Sessions 1 Manual Loads 0 Difficulty Rogue Special Mode None Game No. 225 Rogue 223 Adventurer 2 Explorer 0 Win Type - Total 36 Types 13/3/11/1/1/0/6/1/0/0 Lore% 93 Gallery% 91 Achievement% 81 Wizard Run 0 Options --------- Layout 0 ASCII 0 Keyboard 1 Movement Numpad Keybinds 0 Fullscreen 1 Font 24/Smallcaps Map View 76x50 Zoom Use 0% Tactical HUD 1 Map Filters NONE Filters NONE Steam 1 RUN: 4b06a023-2ca0-4752-b8e7-841eb0e1f862